bitfinex/quotes_ETHUSD_20250802
["timestamp","ask_amount","ask_price","bid_price","bid_amount"]
[1754125718242,6.37297043,3503.4,3503.3,0.002]
[1754125718469,10.81797043,3503.4,3503.3,0.002]
[1754125719457,4.5874,3503.4,3503.3,0.002]
[1754125719780,3.1424,3503.5,3503.3,0.002]
[1754125720146,0.21460429,3503.7,3503.3,0.002]
[1754125720364,8.0413,3503.8,3503.3,0.1444]
[1754125720583,3.1424,3503.8,3503.3,0.1444]
[1754125720743,7.5884,3503.8,3503.3,0.609]
[1754125720943,7.5884,3503.8,3503.3,0.1444]
[1754125721168,8.0492,3503.8,3503.3,0.1444]
[1754125721390,0.6032,3503.8,3503.3,0.1444]
[1754125722498,4.9009,3504.1,3503.4,0.9002]
[1754125722499,4.448,3504.1,3503.4,0.9002]
[1754125722643,3.6032,3504.0,3503.5,0.1424]
[1754125722843,0.001,3503.6,3503.5,0.1424]
[1754125723047,0.001,3503.6,3503.5,0.607]
[1754125723246,0.001,3503.6,3503.5,1.0426]
[1754125723480,0.001,3503.6,3503.5,1.99382983]
[1754125728390,0.001,3504.1,3503.5,1.99382983]
[1754125728617,0.001,3504.1,3504.0,8.61009833]
[1754125728812,0.001,3504.1,3503.9,4.438]
[1754125729108,0.001,3504.1,3503.9,4.5804]
[1754125729264,0.001,3504.1,3503.9,0.1424]
[1754125729653,0.001,3504.1,3503.3,0.116384]
[1754125729654,0.9137,3504.0,3503.3,0.116384]
[1754125729855,0.1424,3503.5,3503.3,0.116384]
[1754125730292,0.9137,3503.4,3503.3,0.002]
[1754125731000,0.1424,3503.5,3503.3,0.002]
[1754125731307,0.4608,3504.0,3503.3,8.61209833]
[1754125731489,0.6032,3504.0,3503.5,0.1424]
[1754125731870,0.584,3504.0,3503.5,0.1424]
[1754125732200,0.4631,3503.9,3503.5,0.1424]
[1754125732499,0.1424,3504.0,3503.5,0.1424]
[1754125732704,0.9047,3503.9,3503.5,0.1424]
[1754125732898,0.9047,3503.8,3503.5,0.1424]
[1754125733099,0.1424,3504.0,3503.5,0.1424]
[1754125733401,0.9047,3503.7,3503.5,0.1424]
[1754125733903,0.1424,3504.0,3503.3,0.002]
[1754125733904,0.9047,3503.6,3503.3,0.002]
[1754125734365,1.0471,3503.5,3503.3,0.002]
[1754125734569,0.9047,3503.4,3503.3,0.002]
[1754125736769,1.30941,3503.4,3503.3,0.002]
[1754125739084,0.4631,3503.6,3503.3,0.002]
[1754125739314,0.4631,3503.8,3503.3,0.002]
[1754125740611,0.9047,3503.7,3503.3,0.002]
[1754125741673,4.441,3504.1,3503.3,0.002]
[1754125741674,0.001,3504.1,3503.3,0.002]
[1754125741879,0.001,3504.1,3503.6,8.46769833]
[1754125742078,0.001,3504.1,3503.7,1.33096983]
[1754125742278,0.001,3504.1,3503.7,1.77026983]
[1754125742480,0.4631,3504.0,3503.7,0.84676983]
[1754125742699,0.9047,3503.9,3503.3,0.002]
[1754125742902,0.9047,3503.8,3503.3,0.002]
[1754125743105,0.9047,3503.7,3503.3,0.002]
[1754125743309,1.719,3504.1,3503.3,0.002]
[1754125743516,0.9047,3503.6,3503.3,0.002]
[1754125744411,0.9047,3503.5,3503.4,0.002]
[1754125746522,2.1811,3503.5,3503.4,0.002]
[1754125748928,1.718,3503.7,3503.4,0.002]
[1754125749297,0.9047,3503.6,3503.4,0.002]
[1754125749664,2.7651,3503.6,3503.4,0.002]
[1754125749805,1.8604,3503.6,3503.4,0.002]
[1754125750125,0.9047,3503.5,3503.4,0.002]
[1754125750291,1.8604,3503.6,3503.4,0.002]
[1754125750491,0.4631,3503.5,3503.4,0.002]
[1754125750697,1.8604,3503.6,3503.4,0.002]
[1754125751610,0.4631,3503.8,3503.4,0.002]
[1754125751813,0.6055,3503.8,3503.4,0.002]
[1754125751993,0.1424,3503.8,3503.4,0.002]
[1754125752329,0.4631,3503.7,3503.4,0.002]
[1754125752524,2.6227,3503.7,3503.4,0.002]
[1754125752702,0.1424,3503.6,3503.4,0.002]
[1754125752896,2.7651,3503.6,3503.4,0.002]
[1754125753092,2.3235,3503.6,3503.4,0.002]
[1754125753316,0.4416,3503.5,3503.4,0.002]
[1754125753524,0.9047,3503.5,3503.4,0.002]
[1754125756506,2.6227,3503.5,3503.4,0.002]
[1754125758344,2.1811,3503.5,3503.4,0.002]
[1754125758509,1.718,3503.8,3503.4,0.002]
[1754125758708,0.1424,3503.7,3503.4,0.002]
[1754125758908,0.6055,3503.7,3503.4,0.002]
[1754125760127,1.719,3504.0,3503.5,5.48410555]
[1754125760327,0.1424,3503.8,3503.5,5.48410555]
[1754125760525,0.6055,3503.8,3503.5,5.48410555]
[1754125760717,0.4631,3503.7,3503.5,5.48410555]
[1754125762027,0.1424,3503.8,3503.5,5.48410555]
[1754125762237,0.1424,3503.9,3503.5,6.0955761]
[1754125762632,0.6308,3503.9,3503.5,6.0955761]
[1754125764676,0.9515,3503.8,3503.4,5.62850555]
[1754125764946,0.9515,3503.7,3503.4,5.62850555]
[1754125765148,0.4884,3503.7,3503.4,5.62850555]
[1754125768223,0.6055,3503.9,3503.4,0.002]
[1754125768224,0.9515,3503.6,3503.4,0.002]
[1754125768640,2.6695,3503.5,3503.4,0.002]
[1754125768860,3.07885,3503.5,3503.4,0.002]
[1754125769066,2.8119,3503.5,3503.4,0.002]
[1754125769650,5.8119,3503.5,3503.4,0.002]
[1754125770586,36.3619,3503.5,3503.4,0.002]
[1754125772285,47.05329836,3503.5,3503.4,0.002]
[1754125772746,43.81095008,3503.5,3503.4,0.002]
[1754125772941,46.67919715,3503.5,3503.4,0.002]
[1754125773293,51.11119715,3503.5,3503.4,0.002]
[1754125773591,54.35354543,3503.5,3503.4,0.002]
[1754125773748,54.50254101,3503.5,3503.4,0.002]
[1754125774109,57.51654101,3503.5,3503.4,0.002]
[1754125774255,47.72388539,3503.4,3503.3,0.002]
[1754125774442,41.42291448,3503.1,3503.0,0.002]
[1754125774648,47.86652983,3503.1,3503.0,0.002]
[1754125774885,48.81802983,3503.1,3503.0,0.002]
[1754125775045,48.53172983,3503.1,3503.0,0.002]
[1754125775387,48.3859769,3503.1,3503.0,0.002]
[1754125775572,53.1478206,3503.1,3503.0,0.002]
[1754125775957,0.55,3502.4,3502.0,0.002]
[1754125776170,40.89450555,3502.1,3502.0,0.002]
[1754125776374,48.85427768,3502.1,3502.0,0.002]
[1754125776758,44.32167213,3502.1,3502.0,0.002]
[1754125776977,41.46624254,3502.1,3502.0,0.002]
[1754125777482,45.13878193,3502.1,3502.0,0.002]
[1754125777847,45.35495024,3502.1,3502.0,0.002]
[1754125778206,45.35495024,3502.1,3500.0,0.53266012]
[1754125778207,2.268,3501.2,3500.0,0.53266012]
[1754125778489,33.6932,3500.9,3500.0,0.53266012]
[1754125778980,34.6447,3500.9,3500.0,0.53266012]
[1754125780180,34.78561167,3500.9,3500.0,0.53266012]
[1754125783204,39.21961167,3500.9,3500.0,0.53266012]
[1754125783506,37.5772,3500.9,3500.3,0.4692]
[1754125783655,37.5772,3500.9,3500.8,0.9105]
[1754125783656,4.5772,3500.9,3500.8,0.9105]
[1754125784553,4.5772,3500.9,3500.8,0.002]
[1754125784897,39.58492,3500.9,3500.8,0.002]
[1754125785684,36.58592,3500.9,3500.8,0.002]
[1754125785998,37.5782,3500.9,3500.8,0.002]
[1754125786595,9.2962,3500.9,3500.8,0.002]
[1754125786792,9.2962,3500.9,3500.8,0.9105]
[1754125788159,9.2962,3500.9,3500.8,0.002]
[1754125788484,9.7846,3500.9,3500.8,0.002]
[1754125788689,9.2962,3500.9,3500.8,0.002]
[1754125789362,10.32097,3500.9,3500.8,0.002]
[1754125790064,11.82247,3500.9,3500.8,0.002]
[1754125793383,4.8612,3500.9,3500.8,0.002]
[1754125793584,9.2962,3500.9,3500.8,0.002]
[1754125795171,16.2962,3500.9,3500.8,0.002]
[1754125795497,16.7692,3500.9,3500.8,0.002]
[1754125795696,47.2101,3500.9,3500.8,0.002]
[1754125795878,50.07834707,3500.9,3500.8,0.002]
[1754125797071,43.07834707,3500.9,3500.8,0.002]
[1754125797707,42.16444707,3500.9,3500.8,0.002]
[1754125798868,42.63744707,3500.9,3500.8,0.002]
[1754125799071,43.07834707,3500.9,3500.8,0.002]
[1754125800467,50.07834707,3500.9,3500.8,0.002]
[1754125801109,41.8612,3500.9,3500.8,0.002]
[1754125801279,46.2962,3500.9,3500.8,0.002]
[1754125803086,34.8612,3500.9,3500.8,0.4554]
[1754125803294,4.8612,3500.9,3500.8,0.8947]
[1754125803900,0.1432,3500.9,3500.8,0.8947]
[1754125804207,6.153,3501.1,3500.8,0.8947]
[1754125804508,0.1432,3501.0,3500.9,0.8927]
[1754125808202,1.718,3501.5,3500.9,1.82987027]
[1754125808402,4.434,3501.4,3501.0,0.8927]
[1754125808601,0.1432,3501.3,3500.9,0.93717027]
[1754125808821,0.1432,3501.3,3501.1,0.8927]
[1754125809025,0.1432,3501.3,3501.0,0.95593729]
[1754125809182,4.434,3501.5,3501.2,0.8927]
[1754125809388,0.1432,3501.4,3501.3,0.8927]
[1754125814302,0.1424,3501.5,3501.3,0.8927]
[1754125814489,0.1424,3501.7,3501.4,0.93697027]
[1754125814810,0.1424,3501.7,3501.5,0.8927]
[1754125816408,0.1424,3501.7,3501.5,0.4534]
[1754125816595,1.8604,3501.7,3501.3,0.4534]
[1754125817029,1.8604,3501.7,3501.4,0.4534]
[1754125817356,1.8604,3501.7,3501.5,0.4534]
[1754125818024,1.8604,3501.7,3501.4,0.4393]
[1754125818224,1.8604,3501.7,3501.4,0.8927]
[1754125819041,1.8604,3501.7,3501.5,0.4534]
[1754125819407,1.8604,3501.7,3501.2,0.1432]
[1754125819914,1.8604,3501.7,3501.2,0.5966]
[1754125820833,2.3334,3501.7,3501.2,0.5966]
[1754125821494,2.7743,3501.7,3501.2,0.1432]
[1754125822099,2.3334,3501.7,3501.2,0.6005]
[1754125822420,1.8604,3501.7,3501.3,0.8966]
[1754125822726,1.8604,3501.7,3501.4,0.4573]
[1754125822908,1.8604,3501.7,3501.3,0.4573]
[1754125823106,1.8604,3501.7,3500.9,8.47700267]
[1754125823306,1.718,3501.5,3501.0,4.5762]
[1754125823496,0.9568,3501.4,3501.0,0.1432]
[1754125823701,2.6748,3501.4,3500.6,4.432]
[1754125824018,2.818,3501.3,3500.8,0.1452]
[1754125824342,1.8612,3501.1,3500.8,0.002]
[1754125824626,1.8612,3501.1,3500.8,0.4593]
[1754125824819,1.8612,3501.1,3500.8,0.002]
[1754125825528,0.1432,3501.1,3500.8,0.002]
[1754125825733,1.8612,3501.1,3500.9,0.90795027]
[1754125825907,1.8612,3501.1,3500.8,0.002]
[1754125826114,2.3581,3501.1,3500.8,0.002]
[1754125826511,1.8612,3501.1,3500.8,0.002]
[1754125826899,1.8612,3501.1,3501.0,5.4911438]
[1754125827429,1.718,3501.1,3501.0,5.4911438]
[1754125827595,1.718,3501.1,3501.0,6.3877438]
[1754125827795,0.1432,3501.2,3501.0,5.9484438]
[1754125828000,0.4599,3502.3,3501.1,0.8966]
[1754125828236,4.432,3502.2,3501.9,5.4911438]
[1754125828536,0.4969,3502.1,3501.9,5.4911438]
[1754125828736,0.9578,3502.0,3501.9,5.4911438]
[1754125828936,0.6403,3502.0,3501.5,0.1424]
[1754125829137,0.6403,3502.0,3501.5,0.5997]
[1754125829501,0.6403,3502.0,3501.0,0.35601389]
[1754125829502,0.4969,3501.9,3501.0,0.35601389]
[1754125829709,0.1424,3501.7,3501.1,4.432]
[1754125829948,2.2149,3501.6,3501.1,4.5752]
[1754125830236,0.9568,3501.5,3501.1,4.5752]
[1754125830420,0.9568,3501.5,3501.1,0.1432]
[1754125830623,0.9568,3501.4,3501.1,0.1432]
[1754125831016,1.718,3501.6,3501.1,0.1432]
[1754125831216,2.2149,3501.6,3501.1,0.1432]
[1754125831412,0.4969,3501.5,3501.1,0.1432]
[1754125831640,2.6748,3501.4,3500.9,4.432]
[1754125831938,2.6748,3501.4,3500.8,8.47047677]
[1754125831939,2.818,3501.3,3500.8,8.61367677]
[1754125832238,0.9568,3501.2,3500.8,13.04567677]
[1754125832901,0.4969,3501.1,3500.8,8.61367677]
[1754125833107,0.4969,3501.0,3500.8,12.90147677]
[1754125833313,0.4969,3500.9,3500.8,4.433]
[1754125833512,1.8612,3501.1,3500.8,4.433]
[1754125834520,1.8612,3501.1,3500.8,4.93635]
[1754125834721,1.8612,3501.1,3500.8,4.433]
[1754125835152,0.9568,3501.0,3500.8,0.002]
[1754125835327,2.6748,3501.0,3500.8,0.002]
[1754125835523,2.1779,3501.0,3500.8,0.002]
[1754125835724,2.818,3500.9,3500.8,0.002]
[1754125835925,2.3581,3500.9,3500.8,0.002]
[1754125836140,1.8612,3500.9,3500.8,0.002]
[1754125836340,1.718,3500.9,3500.8,0.002]
[1754125836853,1.718,3501.4,3500.8,2.24879768]
[1754125837019,1.8612,3501.4,3500.9,4.5742]
[1754125837388,1.8612,3501.4,3501.0,0.4573]
[1754125837515,0.1424,3501.7,3501.2,8.61167677]
[1754125837719,1.0992,3501.7,3501.3,4.431]
[1754125838054,3.6393,3501.7,3501.3,4.431]
[1754125838253,3.1424,3501.7,3501.3,4.431]
[1754125838755,3.1424,3501.7,3501.3,4.8883]
[1754125838954,1.719,3502.0,3501.4,0.4393]
[1754125839142,0.001,3502.0,3501.7,8.46847677]
[1754125839352,0.001,3502.0,3501.8,0.92515674]
[1754125839644,0.001,3502.4,3502.2,8.46847677]
[1754125839853,0.001,3502.4,3502.3,5.42024768]
[1754125840049,0.001,3502.4,3502.3,6.31684768]
[1754125840353,3.0,3503.2,3502.9,8.46847677]
[1754125840354,1.718,3503.2,3502.9,8.46847677]
[1754125840714,6.866,3504.5,3502.9,8.46847677]
[1754125840715,0.4969,3503.7,3502.9,8.46847677]
[1754125841058,0.1424,3503.4,3502.9,9.94475445]
[1754125842453,0.1424,3503.4,3503.0,0.4573]
[1754125842649,0.1424,3503.4,3503.1,4.43]
[1754125843553,1.0992,3503.4,3503.1,4.43]
[1754125843771,0.4969,3503.3,3503.1,4.43]
[1754125844371,0.6023,3503.4,3503.1,4.43]
[1754125844576,0.1424,3503.4,3503.1,4.43]
[1754125844741,0.6393,3503.4,3503.1,4.43]
[1754125844940,0.6393,3503.4,3503.1,5.22620551]
[1754125845476,0.1424,3503.4,3502.9,1.47627768]
[1754125845773,0.1424,3503.1,3502.9,4.429]
[1754125845942,0.4969,3503.0,3502.9,4.429]
[1754125846281,0.9568,3503.0,3502.7,4.429]
[1754125846471,0.9568,3503.0,3502.7,5.73298768]
[1754125846642,0.1424,3503.1,3502.9,8.46847677]
[1754125850278,3.67463729,3503.8,3502.9,8.46847677]
[1754125850579,0.1424,3503.5,3503.0,4.5714]
[1754125850881,0.9568,3503.4,3503.0,4.5714]
[1754125851180,0.9568,3503.3,3503.0,6.00578645]
[1754125851563,0.1424,3503.5,3503.0,6.00578645]
[1754125852049,0.6324,3503.5,3503.0,6.00578645]
[1754125852416,0.001,3503.3,3503.0,6.00478645]
[1754125852806,0.001,3503.3,3503.2,8.46847677]
[1754125853084,0.001,3503.3,3503.2,9.91580309]
[1754125853404,0.001,3503.3,3503.2,15.39500309]
[1754125855792,0.001,3503.3,3503.2,10.05820309]
[1754125855993,0.491,3503.3,3503.2,14.48620309]
[1754125856397,0.001,3503.3,3503.2,14.48620309]
[1754125856576,0.001,3503.3,3503.2,14.96400309]
[1754125857681,0.001,3503.3,3503.2,14.48620309]
[1754125858308,0.9464,3503.3,3503.2,10.05820309]
[1754125858492,0.9464,3503.3,3503.2,14.48520309]
[1754125858684,0.9464,3503.3,3503.2,4.5694]
[1754125859195,0.9464,3503.3,3503.2,4.427]
[1754125859918,1.0888,3503.3,3503.1,4.427]
[1754125860127,0.1424,3503.1,3502.9,4.427]
[1754125860435,0.6324,3503.1,3502.9,4.427]
[1754125860634,0.6324,3503.1,3502.9,5.73078768]
[1754125861324,0.1424,3503.1,3502.9,5.73078768]
[1754125861615,0.001,3503.3,3503.0,0.1424]
[1754125861822,0.001,3503.3,3503.2,8.46847677]
[1754125861982,0.001,3503.3,3503.2,8.61087677]
[1754125862178,0.001,3503.3,3503.2,10.04504322]
[1754125862378,0.001,3503.3,3503.2,10.95384322]
[1754125862819,0.001,3503.3,3503.2,10.04504322]
[1754125863216,0.9464,3503.3,3503.2,4.426]
[1754125863460,1.0888,3503.3,3503.2,4.426]
[1754125863631,1.0888,3503.3,3503.2,8.46847677]
[1754125863818,0.6334,3503.3,3503.2,8.46847677]
[1754125864238,1.0888,3503.3,3503.2,8.46847677]
[1754125864823,0.1434,3503.3,3503.2,9.75792445]
[1754125865569,0.001,3503.3,3503.2,9.75792445]
[1754125867056,0.001,3503.3,3503.2,12.75792445]
[1754125867371,0.491,3503.3,3503.2,12.75792445]
[1754125867581,0.001,3503.3,3503.2,9.75792445]
[1754125867741,0.001,3503.3,3503.2,10.23572445]
[1754125867945,0.001,3503.3,3503.2,9.75792445]
[1754125869254,0.001,3503.7,3503.2,10.66672445]
[1754125869450,0.001,3503.7,3503.4,0.1424]
[1754125869657,0.001,3503.7,3503.5,4.426]
[1754125869996,0.001,3503.7,3503.6,4.5684]
[1754125871075,0.9464,3503.7,3503.6,4.5674]
[1754125871373,0.9464,3503.7,3503.6,5.17649125]
[1754125871574,0.001,3503.7,3503.6,5.03409125]
[1754125872190,0.001,3503.7,3503.6,0.60909125]
[1754125872485,0.001,3503.7,3503.6,4.425]
[1754125875881,0.001,3503.7,3503.6,5.3338]
[1754125876098,0.001,3504.0,3503.6,5.36234207]
[1754125876402,0.001,3504.1,3503.6,5.36234207]
[1754125876403,0.001,3504.1,3503.9,8.46847677]
[1754125876570,0.001,3504.3,3504.0,4.425]
[1754125876754,0.001,3504.3,3504.1,1.30358768]
[1754125876953,0.001,3504.3,3504.2,4.425]
[1754125877667,0.001,3504.3,3504.2,4.5674]
[1754125878068,0.001,3504.3,3504.2,5.0452]
[1754125878690,0.001,3504.6,3504.2,4.59593718]
[1754125878880,0.001,3504.6,3504.5,8.61087677]
[1754125879055,0.001,3504.6,3504.5,13.03487677]
[1754125879866,0.001,3504.6,3504.5,8.61087677]
[1754125880071,0.9464,3504.6,3504.5,4.423]
[1754125881158,0.491,3504.6,3504.5,4.423]
[1754125881366,0.001,3504.6,3504.5,13.34183553]
[1754125881603,0.001,3504.6,3504.5,13.48423553]
[1754125882278,0.001,3504.6,3504.5,14.40293553]
[1754125885881,0.001,3504.6,3504.5,13.96363553]
[1754125886204,0.001,3505.0,3504.5,14.40293553]
[1754125886507,0.001,3505.0,3504.6,1.91969355]
[1754125886670,0.001,3505.0,3504.7,4.423]
[1754125886873,0.001,3505.0,3504.9,0.1424]
[1754125887096,0.001,3505.0,3504.9,4.5644]
[1754125887497,0.9441,3505.0,3504.9,4.5644]
[1754125889304,0.9441,3505.0,3504.9,0.1424]
[1754125889807,0.9441,3505.0,3504.8,4.422]
[1754125890013,0.001,3505.0,3504.8,4.422]
[1754125890229,0.9431,3504.9,3504.8,4.422]
[1754125891287,0.001,3505.0,3504.8,4.422]
[1754125891623,0.9431,3504.9,3504.8,4.5644]
[1754125891929,0.9431,3504.9,3504.8,4.422]
[1754125892130,0.9431,3504.9,3504.7,4.421]
[1754125892423,0.9431,3504.8,3504.7,4.421]
[1754125893522,0.4736,3504.8,3504.7,4.421]
[1754125893827,0.9431,3504.8,3504.7,4.421]
[1754125894617,0.001,3505.0,3504.7,4.421]
[1754125894800,0.001,3505.0,3504.7,5.72418768]
[1754125895130,0.4736,3504.9,3504.7,5.72418768]
[1754125895536,0.001,3505.0,3504.7,5.72418768]
[1754125895737,0.001,3505.0,3504.7,6.20358768]
[1754125896229,0.001,3505.0,3504.9,0.1424]
[1754125896434,0.001,3505.0,3504.9,5.19799877]
[1754125897795,0.001,3505.4,3504.9,6.14523025]
[1754125897994,0.001,3505.4,3505.3,8.61087677]
[1754125898299,0.001,3505.4,3505.3,13.03087677]
[1754125899205,0.9441,3505.4,3505.3,13.03087677]
[1754125899786,0.001,3505.4,3505.3,13.03087677]
[1754125899993,0.001,3505.4,3505.3,13.65552956]
[1754125900811,0.001,3505.4,3505.3,10.66387318]
[1754125903427,0.001,3505.4,3505.3,11.58257318]
[1754125903633,0.001,3505.8,3505.3,11.58257318]
[1754125903836,0.001,3505.8,3505.7,5.47682039]
[1754125904025,0.001,3506.2,3506.1,5.47682039]
[1754125904332,0.001,3506.2,3506.1,10.03822039]
[1754125904635,0.9441,3506.2,3506.1,5.61922039]
[1754125904804,0.9441,3506.2,3506.1,4.419]
[1754125905239,0.9441,3506.2,3506.0,4.419]
[1754125905422,0.001,3506.2,3506.0,4.419]
[1754125905627,0.9431,3506.1,3506.0,4.419]
[1754125905810,0.9431,3506.1,3506.0,9.89582039]
[1754125906230,0.9431,3506.1,3505.8,0.1424]
[1754125906404,0.4736,3506.0,3505.9,9.89582039]
[1754125906603,0.9431,3506.0,3505.9,9.89582039]
[1754125907222,0.9431,3506.0,3504.9,0.63459877]
[1754125907428,0.9431,3505.9,3505.5,5.47682039]
[1754125907735,0.001,3506.2,3505.5,5.47682039]
[1754125907736,0.9431,3505.8,3505.6,4.418]
[1754125907931,0.001,3506.2,3505.6,4.418]
[1754125908143,0.9431,3505.7,3505.5,5.61922039]
[1754125908308,0.001,3506.2,3505.6,4.418]
[1754125908505,0.1424,3505.8,3505.6,4.418]
[1754125908936,0.9431,3505.7,3505.6,4.418]
[1754125909727,0.4736,3505.9,3505.6,4.418]
[1754125910037,1.8594,3506.2,3505.8,5.47682039]
[1754125910240,1.8594,3506.2,3506.1,5.47682039]
[1754125910822,2.8025,3506.2,3506.1,5.47682039]
[1754125912040,0.9441,3506.2,3506.1,5.47682039]
[1754125912412,0.9441,3506.2,3506.0,4.418]
[1754125912643,0.9292,3506.1,3505.8,5.61922039]
[1754125912821,1.0716,3506.0,3505.9,4.418]
[1754125913026,1.717,3506.2,3505.9,4.418]
[1754125913360,1.717,3506.2,3506.1,5.47682039]
[1754125913361,0.9302,3506.2,3506.1,5.47682039]
[1754125913647,0.9302,3506.2,3505.8,0.1424]
[1754125913832,0.9292,3506.1,3505.9,4.418]
[1754125914034,0.9292,3506.1,3505.9,9.89482039]
[1754125914248,0.4543,3506.1,3505.9,9.89482039]
[1754125914548,0.4749,3506.0,3505.9,9.89482039]
[1754125914713,0.9292,3506.0,3505.9,9.89482039]
[1754125916528,2.6452,3506.0,3505.9,9.89482039]
[1754125916846,0.9292,3506.0,3505.8,5.47682039]
[1754125917046,1.8594,3506.2,3505.9,4.417]
[1754125917425,1.90294,3506.2,3505.2,5.47682039]
[1754125917750,0.1424,3505.8,3505.5,5.47682039]
[1754125917948,1.716,3506.0,3505.6,4.417]
[1754125918256,0.1424,3505.8,3505.6,9.89382039]
[1754125918463,0.1424,3505.8,3505.6,9.89582039]
[1754125918619,0.9292,3505.7,3505.6,9.89582039]
[1754125918824,0.9292,3505.7,3505.6,0.002]
[1754125919951,0.9292,3505.7,3505.6,5.47882039]
[1754125922177,0.1424,3505.8,3505.6,5.47882039]
[1754125922472,0.1424,3505.8,3505.7,0.54788204]
[1754125922622,0.1424,3505.8,3505.6,5.47882039]
[1754125924139,0.1424,3505.8,3505.7,4.416]
[1754125924827,1.0716,3505.8,3505.7,4.416]
[1754125925759,1.0716,3505.8,3505.6,5.47882039]
[1754125925962,1.0716,3505.8,3505.7,4.416]
[1754125926153,0.6173,3505.8,3505.7,4.416]
[1754125926678,2.3333,3505.8,3505.7,4.416]
[1754125926882,2.7876,3505.8,3505.7,4.416]
[1754125927253,1.8584,3505.8,3505.7,4.416]
[1754125927463,0.1424,3505.8,3505.7,4.416]
[1754125927683,0.1424,3505.9,3505.7,4.416]
[1754125927826,0.1424,3505.9,3505.8,5.47682039]
[1754125928761,0.001,3506.0,3505.8,5.47682039]
[1754125928938,0.9292,3505.9,3505.6,0.002]
[1754125929139,0.9292,3505.8,3505.7,4.416]
[1754125929333,0.9292,3505.8,3505.7,4.415]
[1754125929854,0.4749,3505.8,3505.7,4.415]
[1754125930356,0.1424,3505.9,3505.7,4.415]
[1754125930661,0.1424,3505.9,3505.8,5.47682039]
[1754125931067,0.1424,3505.9,3505.8,9.89182039]
[1754125932365,0.1424,3505.9,3505.8,11.50883169]
[1754125932584,0.001,3506.0,3505.8,11.65123169]
[1754125932766,0.001,3506.0,3505.9,0.4842]
[1754125933131,0.001,3506.0,3505.8,10.73513169]
[1754125933342,0.001,3506.0,3505.9,0.94462334]
[1754125933557,0.001,3506.0,3505.9,2.0842755]
[1754125935251,0.001,3506.0,3505.9,5.0842755]
[1754125936079,0.001,3506.3,3506.1,5.47682039]
[1754125936281,0.001,3506.3,3506.2,4.414]
[1754125936462,0.001,3506.3,3506.2,5.4725]
[1754125936667,0.001,3506.3,3506.2,6.98424959]
[1754125938048,0.1424,3507.2,3506.3,3.55]
[1754125938262,0.1424,3507.2,3507.1,8.47682039]
[1754125938459,0.4749,3508.1,3507.1,12.89082039]
[1754125938779,0.4543,3508.2,3507.9,5.47682039]
[1754125938987,1.717,3508.3,3507.9,5.47682039]
[1754125939190,0.1424,3508.0,3507.9,5.47682039]
[1754125939394,1.716,3507.9,3507.3,4.414]
[1754125939564,0.9292,3507.8,3507.3,9.89082039]
[1754125939751,0.9292,3507.7,3507.3,9.89082039]
[1754125939947,1.716,3507.9,3507.3,9.89082039]
[1754125940301,0.9292,3507.6,3507.0,5.47682039]
[1754125940469,0.9292,3507.5,3507.1,4.413]
[1754125940795,0.9292,3507.4,3507.2,4.413]
[1754125940988,0.1716,3507.8,3507.2,4.413]
[1754125941289,0.9292,3507.7,3507.2,4.413]
[1754125941502,0.9292,3507.6,3507.2,4.413]
[1754125941707,0.9316,3507.5,3507.2,4.413]
[1754125941879,0.1716,3507.8,3507.2,4.413]
[1754125942216,0.9316,3507.4,3507.3,5.47682039]
[1754125942369,0.9316,3507.4,3507.3,9.88982039]
[1754125942874,1.716,3508.1,3507.3,9.88982039]
[1754125943199,0.21014635,3508.3,3507.3,9.88982039]
[1754125943200,0.4899,3507.6,3507.4,4.412]
[1754125943999,0.4899,3508.0,3507.4,4.412]
[1754125944169,3.001,3508.7,3507.9,5.47682039]
[1754125944369,2.41604635,3508.3,3507.9,5.47682039]
[1754125944602,0.9316,3508.2,3507.9,5.47682039]
[1754125944966,0.9316,3508.1,3507.9,5.47682039]
[1754125945168,0.4909,3508.3,3507.9,5.47682039]
[1754125945367,0.001,3508.3,3507.9,5.47682039]
[1754125945568,0.4909,3508.3,3508.0,4.412]
[1754125945773,0.4899,3508.2,3508.0,4.412]
[1754125946471,0.001,3508.3,3508.0,4.412]
[1754125947200,0.001,3508.3,3508.0,4.867]
[1754125947504,0.001,3508.3,3508.0,5.39973087]
[1754125948299,0.001,3508.3,3508.1,8.4378607]
[1754125948481,0.001,3508.3,3508.2,4.412]
[1754125948870,0.001,3508.3,3508.2,4.526238]
[1754125949275,0.001,3508.3,3508.2,4.668638]
[1754125949501,0.001,3508.3,3508.2,6.53074096]
[1754125950008,0.001,3508.3,3508.2,6.96254096]
[1754125950172,0.001,3508.3,3508.2,2.55054096]
[1754125950377,0.001,3508.3,3508.2,6.96154096]
[1754125952409,0.001,3508.3,3508.2,6.52874096]
[1754125952789,0.001,3508.3,3508.2,2.11874096]
[1754125952991,0.001,3508.3,3508.2,6.52874096]
[1754125953511,0.001,3508.3,3508.2,2.11874096]
[1754125953705,0.001,3508.3,3508.2,6.52874096]
[1754125954313,0.001,3508.3,3508.2,6.07374096]
[1754125954680,0.001,3508.3,3508.2,1.66374096]